bitfinex-derivatives/quotes_BNBF0:USTF0_20250425
["timestamp","ask_amount","ask_price","bid_price","bid_amount"]
[1745581272451,1.3795176,605.73,604.02,0.30376488]
[1745581272653,1.3795176,605.72,604.0,0.30376488]
[1745581272851,1.3795176,605.71,604.01,0.30375375]
[1745581273152,1.3795176,605.7,604.02,0.30375375]
[1745581273347,1.3795176,605.69,604.0,0.30375375]
[1745581273555,1.3795176,605.68,604.01,0.30375375]
[1745581273752,1.3795176,605.67,604.0,0.30375375]
[1745581273946,1.3795176,605.66,604.01,0.30375375]
[1745581274151,1.13989725,605.68,604.0,0.30375375]
[1745581274152,1.3795176,605.65,604.0,0.30375375]
[1745581274346,1.3795176,605.64,604.01,0.30372748]
[1745581274553,1.3795176,605.63,604.02,0.30372748]
[1745581274749,1.3795176,605.62,604.03,0.30372748]
[1745581274955,1.37969237,605.61,603.99,0.30372748]
[1745581275152,1.37969237,605.6,604.0,0.30372748]
[1745581275352,1.37969237,605.59,603.99,0.30372748]
[1745581275650,2.51958962,605.58,604.0,0.30372748]
[1745581275854,1.37969237,605.57,604.01,0.30372322]
[1745581276050,1.37969237,605.56,603.99,0.30372322]
[1745581276256,2.51958962,605.55,604.0,0.30372322]
[1745581276551,1.37969237,605.54,604.01,0.30372322]
[1745581276751,1.37969237,605.53,604.02,0.30372322]
[1745581276948,1.37969237,605.52,604.03,0.30372322]
[1745581277155,1.37969237,605.51,604.04,0.30372322]
[1745581277457,1.37969237,605.5,604.19,1.0505215]
[1745581277749,2.51958962,605.49,604.2,0.30372419]
[1745581277954,1.37969237,605.48,604.2,0.30372419]
[1745581278156,1.37969237,605.47,604.2,0.30372419]
[1745581278357,2.51958962,605.46,604.2,0.30372419]
[1745581278556,1.37969237,605.45,604.2,0.30372419]
[1745581278752,1.37969237,605.44,604.2,0.30372419]
[1745581278954,1.37969237,605.43,604.21,1.078]
[1745581279157,1.37969237,605.42,604.22,0.30372419]
[1745581279358,1.37969237,605.41,604.22,0.30372419]
[1745581279558,1.13989725,605.43,604.22,0.30372419]
[1745581279559,1.37969237,605.4,604.22,0.30372419]
[1745581279756,2.51958962,605.39,604.22,0.30372419]
[1745581279961,1.37969237,605.38,604.22,0.30372419]
[1745581280161,2.51958962,605.37,604.22,0.30372419]
[1745581280363,1.37969237,605.36,604.21,1.078]
[1745581280563,1.37969237,605.35,604.22,0.30373441]
[1745581280863,2.51958962,605.34,604.22,0.30373441]
[1745581281158,2.51958962,605.33,604.22,0.30373441]
[1745581281362,1.37969237,605.32,604.22,0.30373441]
[1745581281560,2.51958962,605.31,604.21,1.078]
[1745581281765,1.37969237,605.3,604.23,1.438]
[1745581281957,1.37969237,605.29,604.23,1.438]
[1745581282159,1.37969237,605.28,604.23,1.438]
[1745581282356,2.51958962,605.27,604.23,1.438]
[1745581282560,1.37969237,605.26,604.23,1.438]
[1745581282863,1.37969237,605.25,604.23,1.438]
[1745581283159,2.51958962,605.24,604.23,1.438]
[1745581283363,1.37969237,605.23,604.23,1.438]
[1745581283562,1.37969237,605.22,604.23,1.438]
[1745581283764,1.37969237,605.21,604.23,1.438]
[1745581283963,2.51958962,605.2,604.23,1.438]
[1745581284164,1.13989725,605.2,604.23,1.438]
[1745581284361,1.37903331,605.19,604.23,1.438]
[1745581284565,2.51893056,605.18,604.23,1.438]
[1745581284767,2.51893056,605.18,604.24,1.153]
[1745581284768,1.37903331,605.17,604.24,1.153]
[1745581284967,1.37903331,605.16,604.24,1.153]
[1745581285167,2.51893056,605.15,604.24,1.153]
[1745581285367,1.37903331,605.14,604.24,1.153]
[1745581285569,1.37903331,605.13,604.24,1.153]
[1745581285869,2.51893056,605.12,604.24,1.153]
[1745581286066,1.37903331,605.11,604.24,1.153]
[1745581286263,2.51893056,605.1,604.24,1.153]
[1745581286466,1.37903331,605.09,604.24,1.153]
[1745581286665,1.37903331,605.08,604.24,1.153]
[1745581286864,2.51893056,605.07,604.24,1.153]
[1745581287062,1.37903331,605.06,604.24,1.153]
[1745581287264,1.37903331,605.05,604.24,1.153]
[1745581287466,2.51893056,605.04,604.24,1.153]
[1745581287666,1.37903331,605.03,604.24,1.153]
[1745581287865,1.37903331,605.02,604.24,1.153]
[1745581288172,2.51830404,605.01,604.24,1.153]
[1745581288370,1.37851967,605.0,604.24,1.153]
[1745581288571,1.37851967,604.99,604.24,1.153]
[1745581288770,1.37851967,604.98,604.24,1.153]
[1745581289271,1.13989725,604.97,604.24,1.153]
[1745581289473,1.37851967,604.96,604.24,1.153]
[1745581289771,1.13989725,604.95,604.24,1.153]
[1745581290071,2.51868446,604.94,604.24,1.153]
[1745581290266,1.37878721,604.93,604.24,1.153]
[1745581290467,2.51868446,604.93,604.24,1.153]
[1745581290671,1.37878721,604.92,604.24,1.153]
[1745581290866,2.51868446,604.92,604.24,1.153]
[1745581291067,2.51868446,604.91,604.24,1.153]
[1745581291373,1.37878721,604.9,604.24,1.153]
[1745581291565,2.51868446,604.9,604.24,1.153]
[1745581291769,2.51868446,604.89,604.24,1.153]
[1745581292065,1.37878721,604.88,604.24,1.153]
[1745581292470,1.13989725,604.87,604.24,1.153]
[1745581292670,2.51868446,604.86,604.24,1.153]
[1745581292870,1.37878721,604.85,604.24,1.153]
[1745581293071,1.13989725,604.84,604.24,1.153]
[1745581293270,1.37878721,604.83,604.24,1.153]
[1745581293472,1.13989725,604.82,604.24,1.153]
[1745581294071,1.13989725,604.81,604.24,1.153]
[1745581294267,1.13989725,604.8,604.24,1.153]
[1745581294573,1.13989725,604.79,604.24,1.153]
[1745581294968,1.13989725,604.78,604.24,1.153]
[1745581295773,1.13989725,604.77,604.24,1.153]
[1745581296372,1.13989725,604.76,604.24,1.153]
[1745581297169,1.13989725,604.75,604.24,1.153]
[1745581298176,1.13989725,604.74,604.24,1.153]
[1745581298774,1.13989725,604.73,604.24,1.153]
[1745581299878,1.13989725,604.72,604.24,1.153]
[1745581300576,1.13989725,604.71,604.24,1.153]
[1745581301274,1.13989725,604.7,604.24,1.153]
[1745581301977,1.13989725,604.69,604.24,1.153]
[1745581302578,1.13989725,604.68,604.24,1.153]
[1745581303176,1.13989725,604.67,604.24,1.153]
[1745581303887,1.13989725,604.67,604.23,1.72585071]
[1745581304074,1.13989725,604.66,604.23,1.72585071]
[1745581304480,1.13989725,604.65,604.23,1.438]
[1745581305081,1.13989725,604.64,604.23,1.438]
[1745581305678,1.13989725,604.63,604.23,1.438]
[1745581305886,1.13989725,604.63,604.23,1.72585786]
[1745581306082,1.13989725,604.62,604.23,1.72585786]
[1745581306683,1.13989725,604.62,604.23,0.28785786]
[1745581306883,1.13989725,604.61,604.23,0.28785786]
[1745581307882,1.13989725,604.6,604.23,0.28785786]
[1745581308485,1.13989725,604.59,604.23,0.28785786]
[1745581309483,1.13989725,604.58,604.23,0.28785786]
[1745581309985,1.13989725,604.57,604.23,0.28785786]
[1745581310484,1.13989725,604.56,604.23,0.28785786]
[1745581310880,1.13989725,604.55,604.23,0.28785786]
[1745581311581,1.13989725,604.54,604.23,0.28785786]
[1745581311887,1.13989725,604.53,604.23,0.28785786]
[1745581312681,1.13989725,604.52,604.23,0.28785786]
[1745581313681,1.13989725,604.51,604.23,0.28785786]
[1745581314185,1.13989725,604.5,604.23,0.28785786]
[1745581314587,1.13989725,604.49,604.23,0.28785786]
[1745581314988,1.13989725,604.48,604.23,0.28785786]
[1745581315389,1.13989725,604.47,604.23,0.28785786]
[1745581315584,1.13989725,604.46,604.23,0.28785786]
[1745581316093,1.13989725,604.45,604.23,0.28785786]
[1745581316494,1.13989725,604.44,604.23,0.28785786]
[1745581317395,1.13989725,604.43,604.23,0.28785786]
[1745581317589,0.2879174,605.77,604.23,0.28785786]
[1745581317788,1.38072544,605.76,604.23,0.28785786]
[1745581317992,1.38072544,605.75,604.23,0.28785786]
[1745581318193,1.38072544,605.74,603.99,1.071]
[1745581318389,1.38072544,605.73,604.0,0.30385882]
[1745581318594,1.38072544,605.72,604.0,0.30385882]
[1745581318793,1.38072544,605.71,604.0,0.30385882]
[1745581318989,1.38072544,605.7,604.0,0.30385882]
[1745581319191,1.38072544,605.69,604.01,1.038]
[1745581319391,1.38075967,605.68,604.01,1.038]
[1745581319594,1.38075967,605.67,604.01,1.32579596]
[1745581319794,1.38075967,605.66,604.01,1.32579596]
[1745581320095,1.38075967,605.65,604.02,0.30385035]
[1745581320297,1.38075967,605.64,604.02,0.30385035]
[1745581320594,2.52218042,605.63,604.02,0.30385035]
[1745581320893,1.38075967,605.62,604.02,0.30385035]
[1745581321087,1.38075967,605.61,604.02,0.30385035]
[1745581321289,1.38075967,605.6,604.02,0.30385035]
[1745581321487,1.38075967,605.59,604.03,0.30384715]
[1745581321694,1.38075967,605.58,604.04,0.30384715]
[1745581321892,1.38075967,605.57,604.05,0.30384715]
[1745581322092,1.38075967,605.56,604.06,0.30384715]
[1745581322292,1.38075967,605.55,604.07,0.30384715]
[1745581322494,2.52218042,605.54,604.02,0.30384715]
[1745581322695,1.38075967,605.53,604.03,0.59164192]
[1745581322895,2.52218042,605.52,604.04,0.30384715]
[1745581323092,1.38075967,605.51,604.04,0.30384715]
[1745581323292,1.38075967,605.5,604.04,0.30384715]
[1745581323493,2.52218042,605.49,604.04,0.30384715]
[1745581323790,2.52218042,605.48,604.04,0.30384715]
[1745581323990,1.38075967,605.47,604.04,0.30384715]
[1745581324192,1.38075967,605.46,604.04,0.30384715]
[1745581324393,2.52218042,605.45,604.04,0.30384715]
[1745581324594,2.52218042,605.45,604.05,0.30384967]
[1745581324595,1.38075967,605.44,604.05,0.30384967]
[1745581324895,1.38075967,605.43,604.06,0.30384967]
[1745581325095,1.38075967,605.42,604.07,0.30384967]
[1745581325291,1.38075967,605.41,604.08,0.30384967]
[1745581325493,2.52218042,605.4,604.04,0.30384967]
[1745581325791,1.38075967,605.39,604.05,0.28780905]
[1745581325996,1.38075967,605.38,604.05,0.28780905]
[1745581326195,1.38080558,605.37,604.05,0.28780905]
[1745581326392,2.52222633,605.36,604.05,0.28780905]
[1745581326697,1.38080558,605.35,604.05,0.28780905]
[1745581326899,1.38080558,605.34,604.05,0.28780905]
[1745581327092,2.52222633,605.33,604.05,0.28780905]
[1745581327295,1.38080558,605.32,604.05,0.28780905]
[1745581327491,1.38080558,605.31,604.05,0.28780905]
[1745581327692,2.52222633,605.3,604.05,0.28780905]
[1745581327893,1.14142075,605.3,604.05,0.28780905]
[1745581328099,1.38089832,605.29,604.05,0.28780905]
[1745581328398,1.38089832,605.28,604.01,1.038]
[1745581328601,2.52231907,605.27,604.01,1.038]
[1745581328795,1.38089832,605.26,604.01,1.038]
[1745581329001,1.38089832,605.25,604.01,1.038]
[1745581329299,2.52231907,605.24,604.01,1.038]
[1745581329498,1.38089832,605.23,604.01,1.038]
[1745581329698,2.52231907,605.22,604.02,0.28784119]
[1745581329896,1.38089832,605.21,604.02,0.28784119]
[1745581330198,1.38089832,605.2,604.02,0.28784119]
[1745581330401,1.38089832,605.19,604.02,0.28784119]
[1745581330598,1.38089832,605.18,604.02,0.28784119]
[1745581330794,1.38089832,605.17,604.02,0.28784119]
[1745581330995,1.38089832,605.16,604.02,0.28784119]
[1745581331195,2.52231907,605.15,604.02,0.28784119]
[1745581331400,1.38089832,605.14,604.01,1.038]
[1745581331599,1.38089832,605.13,604.01,1.038]
[1745581331800,2.52231907,605.12,604.02,0.28786619]
[1745581331995,1.38089832,605.11,604.02,0.28786619]
[1745581332201,1.38089832,605.1,604.02,0.28786619]
[1745581332395,1.38089832,605.09,604.02,0.28786619]
[1745581332599,1.38089832,605.08,604.02,0.28786619]
[1745581332801,2.1407043,606.54,604.02,0.28786619]
[1745581332802,1.38089832,605.07,604.02,0.28786619]
[1745581333096,2.52231907,605.06,604.02,0.28786619]
[1745581333302,2.52231907,605.05,604.02,0.28786619]
[1745581333501,1.38089832,605.04,604.02,0.28786619]
[1745581333797,1.38089832,605.03,604.02,0.28786619]
[1745581334100,1.38089832,605.02,604.02,0.28786619]
[1745581334302,1.38089832,605.01,604.02,0.28786619]
[1745581334600,1.38089832,605.0,604.01,1.038]
[1745581334802,1.38089832,604.99,604.01,1.038]
[1745581334995,2.52231907,604.98,604.01,1.038]
[1745581335198,1.38089832,604.97,604.01,1.038]
[1745581335398,2.52091282,604.96,604.01,1.038]
[1745581335597,1.37949207,604.95,604.01,1.038]
[1745581335801,1.37949207,604.94,604.02,0.28789239]
[1745581336002,1.37949207,604.93,604.02,0.28789239]
[1745581336203,2.52091282,604.92,604.02,0.28789239]
[1745581336400,1.37949207,604.91,604.02,0.28789239]
[1745581336600,2.52091282,604.9,604.02,0.28789239]
[1745581336805,1.37949207,604.89,604.02,0.28789239]
[1745581337002,1.37949207,604.88,604.02,0.28789239]
[1745581337203,1.37949207,604.87,604.02,0.28789239]
[1745581337404,1.37949207,604.86,604.01,1.038]
[1745581337602,1.37949207,604.85,604.01,1.038]
[1745581337800,1.37949207,604.84,604.02,0.28789239]
[1745581337999,1.37949207,604.83,604.02,0.28789239]
[1745581338200,2.52091282,604.82,604.02,0.28789239]
[1745581338405,1.37949207,604.81,604.02,1.23489239]
[1745581338607,2.1407043,606.66,604.02,1.23489239]
[1745581338608,2.52091282,604.8,604.02,1.23489239]
[1745581338801,1.37949207,604.79,604.02,2.43289239]
[1745581339208,1.14142075,604.78,604.02,2.43289239]
[1745581339407,1.37949207,604.77,604.02,2.43289239]
[1745581339604,1.14142075,604.76,604.02,2.43289239]
[1745581339804,1.37949207,604.75,604.02,2.43289239]
[1745581340202,1.14142075,604.74,604.02,2.43289239]
[1745581340408,1.37949207,604.73,604.02,2.145]
[1745581340707,1.14142075,604.72,604.02,2.145]
[1745581340911,1.37949207,604.71,604.02,2.43290787]
[1745581341206,1.14142075,604.7,604.02,2.43290787]
[1745581341401,1.37949207,604.69,604.02,2.43290787]
[1745581341808,1.14142075,604.68,604.02,2.43290787]
[1745581342003,1.37949207,604.67,604.02,2.43290787]
[1745581342502,1.14142075,604.66,604.02,2.43290787]
[1745581342709,1.37958698,604.65,604.02,2.43290787]
[1745581342902,2.52100773,604.64,604.02,2.43290787]
[1745581343107,1.37958698,604.63,604.02,2.43290787]
[1745581343403,2.52100773,604.62,604.02,2.43290787]
[1745581343608,1.37958698,604.61,604.02,2.145]
[1745581343809,1.14142075,604.6,604.02,2.43291978]
[1745581344208,1.14142075,604.59,604.02,2.43291978]
[1745581344704,1.14142075,604.58,604.02,2.43291978]
[1745581345108,1.14142075,604.57,604.02,2.43291978]
[1745581346310,1.14142075,604.56,604.02,2.43291978]
[1745581346609,1.14142075,604.55,604.02,2.145]
[1745581347111,1.14142075,604.54,604.02,2.145]
[1745581347710,1.14142075,604.53,604.02,2.43292574]
[1745581348209,1.14142075,604.52,604.02,2.43292574]
[1745581348711,1.14142075,604.51,604.02,2.43292574]
[1745581349510,1.14142075,604.51,604.02,2.145]
[1745581349711,1.14142075,604.5,604.02,2.145]
[1745581350011,1.14142075,604.49,604.02,2.145]
[1745581350409,1.14142075,604.49,603.79,1.0505215]
[1745581350612,1.25820987,606.12,603.79,1.0505215]
[1745581350613,1.14142075,604.48,603.8,0.3038817]
[1745581350814,1.14142075,604.47,604.02,0.28793169]
[1745581351013,1.14142075,604.47,604.03,0.3038819]
[1745581351218,1.14142075,604.47,604.02,0.28796028]
[1745581351414,1.14142075,604.46,604.03,0.3038819]
[1745581351917,1.14142075,604.45,604.03,0.3038819]
[1745581352617,1.14142075,604.44,604.03,0.3038819]
[1745581352815,1.14142075,604.44,604.04,0.3038819]
[1745581353012,1.14142075,604.44,604.02,0.28793646]
[1745581353217,1.14142075,604.44,604.03,0.30388624]
[1745581353417,1.14142075,604.43,604.03,0.30388624]
[1745581353717,1.14142075,604.43,604.02,0.28793646]
[1745581354017,1.14142075,604.42,604.02,0.28793646]
[1745581354317,1.14142075,604.41,604.02,0.28793646]
[1745581354817,1.14142075,604.4,604.02,0.28793646]
[1745581355315,1.14142075,604.39,604.02,0.28793646]
[1745581355518,1.14142075,604.39,603.95,1.0505215]
[1745581355715,1.14142075,604.38,603.95,1.0505215]
[1745581356220,1.14142075,604.37,603.95,1.0505215]
[1745581356822,1.14142075,604.36,603.96,0.28796386]
[1745581357322,1.14142075,604.35,603.96,0.28796386]
[1745581358017,1.25820987,605.94,603.96,0.28796386]
[1745581358222,1.38012263,605.93,603.96,0.28796386]
[1745581358417,1.38012263,605.92,603.86,1.0505215]
[1745581358618,1.38012263,605.91,603.86,1.0505215]
[1745581358920,1.38012263,605.9,603.86,1.0505215]
[1745581359116,1.38012263,605.89,603.86,1.0505215]
[1745581359317,1.38012263,605.88,603.86,1.0505215]
[1745581359617,2.52103833,605.87,603.86,1.0505215]
[1745581359824,1.38012263,605.86,603.87,0.28780191]
[1745581360019,1.38012263,605.85,603.87,0.28780191]
[1745581360222,1.38012263,605.84,603.87,0.28780191]
[1745581360419,2.52103833,605.83,603.87,0.28780191]
[1745581360619,1.38012263,605.82,603.87,0.28780191]
[1745581360821,1.38012263,605.81,603.87,0.28780191]
[1745581361025,1.38012263,605.8,603.87,0.28780191]
[1745581361222,2.52103833,605.79,603.87,0.28780191]
[1745581361419,1.38012263,605.78,603.87,0.28780191]
[1745581361721,1.38012263,605.77,603.87,0.28780191]
[1745581361921,1.38012263,605.76,603.87,0.28780191]
[1745581362124,2.52103833,605.75,603.87,0.28780191]
[1745581362320,2.52103833,605.74,603.87,0.28780191]
[1745581362524,1.38012263,605.73,603.87,0.28780191]
[1745581362724,2.52103833,605.72,603.87,0.28780191]
[1745581363024,1.38042631,605.71,603.87,0.28780191]
[1745581363224,1.38042631,605.7,603.87,0.28780191]
[1745581363424,2.52134201,605.69,603.87,0.28780191]
[1745581363625,1.38042631,605.68,603.87,0.28780191]
[1745581363821,2.52134201,605.67,603.87,0.28780191]
[1745581364022,1.38042631,605.66,603.87,0.28780191]
[1745581364227,1.38042631,605.65,603.87,0.28780191]
[1745581364430,1.38042631,605.64,603.76,2.1825215]
[1745581364626,1.38042631,605.63,603.77,0.30390599]
[1745581364827,1.38042631,605.62,603.77,0.30390599]
[1745581365027,2.52134201,605.61,603.77,0.30390599]
[1745581365227,1.38042631,605.6,603.78,0.30390628]
[1745581365424,1.38042631,605.59,603.79,0.30390628]
[1745581365630,1.38042631,605.58,603.77,0.30390628]
[1745581365828,1.38042631,605.57,603.78,0.59174985]
[1745581366023,1.25820987,606.1,603.78,0.59174985]
[1745581366024,2.52134201,605.56,603.79,0.30390628]
[1745581366222,1.38042631,605.55,603.79,0.30390628]
[1745581366427,2.52134201,605.54,603.79,0.30390628]
[1745581366629,2.52134201,605.53,603.79,0.30390628]
[1745581366931,2.52134201,605.52,603.8,0.30390571]
[1745581367131,1.38042631,605.51,603.79,0.30390571]
[1745581367430,2.52134201,605.5,603.8,0.30390571]
[1745581367629,1.38042631,605.49,603.81,0.30390571]
[1745581367830,1.38042631,605.48,603.82,0.30390571]
[1745581368030,1.38042631,605.47,603.83,0.30390571]
[1745581368225,2.52134201,605.46,603.79,0.30390571]
[1745581368431,1.38042631,605.45,603.8,0.30390537]
[1745581368626,1.38042631,605.44,603.79,0.30390537]
[1745581368930,2.52134201,605.43,603.8,0.30390537]
[1745581369129,1.38042631,605.42,603.79,0.30390537]
[1745581369329,1.38042631,605.41,603.8,0.30390537]
[1745581369531,2.52134201,605.4,603.81,0.30390537]
[1745581369725,1.38042631,605.39,603.82,0.30390537]
[1745581369924,1.38042631,605.38,603.83,0.30390537]
[1745581370125,1.38042631,605.37,603.79,0.30390537]
[1745581370328,2.52134201,605.36,603.8,0.30390537]
[1745581370551,1.38042631,605.35,603.79,0.30390537]
[1745581370832,1.38042631,605.34,603.82,1.0505215]
[1745581371130,1.38042631,605.33,603.83,0.30390537]
[1745581371430,2.52134201,605.32,603.83,0.30390537]
[1745581371625,1.38042631,605.31,603.83,0.30390537]
[1745581371826,1.38042631,605.3,603.83,0.30390537]
[1745581372033,2.52134201,605.29,603.83,0.30390537]
[1745581372228,1.38042631,605.28,603.83,0.30390537]
[1745581372430,1.38042631,605.27,603.86,1.0505215]
[1745581372625,1.38042631,605.26,603.86,1.0505215]
[1745581372830,1.38042631,605.25,603.86,1.0505215]
[1745581373033,1.38042631,605.24,603.86,1.0505215]
[1745581373238,1.38042631,605.23,603.86,1.0505215]
[1745581373528,2.52134201,605.22,603.87,0.30390763]
[1745581373727,1.38042631,605.21,603.86,1.0505215]
[1745581373930,1.38042631,605.2,603.86,1.0505215]
[1745581374132,2.52134201,605.19,603.86,1.0505215]
[1745581374333,1.38042631,605.18,603.87,1.4399082]
[1745581374534,1.38042631,605.17,603.87,1.136]
[1745581374734,1.38042631,605.16,603.88,0.30390814]
[1745581375034,2.52134201,605.15,603.88,0.30390814]
[1745581375232,1.38042631,605.14,603.88,0.30390814]
[1745581375429,1.38042631,605.13,603.88,0.30390814]
[1745581375630,2.52134201,605.12,603.89,0.974]
[1745581375834,1.38042631,605.11,603.89,0.974]
[1745581376030,1.38042631,605.1,603.89,0.974]
[1745581376235,1.38042631,605.09,603.89,0.974]
[1745581376434,2.52134201,605.08,603.89,0.974]
[1745581376632,2.52134201,605.07,603.89,0.974]
[1745581376834,1.38042631,605.06,603.89,0.974]
[1745581377033,1.38042631,605.05,603.89,0.974]
[1745581377233,1.38042631,605.04,603.89,0.974]
[1745581377432,1.1409157,605.03,603.89,0.974]
[1745581377635,1.38242429,605.02,603.89,0.974]
[1745581377835,1.38242429,605.01,603.89,0.974]
[1745581378034,1.38241722,605.0,603.89,0.974]
[1745581378340,2.52333292,604.99,603.89,0.974]
[1745581378539,1.38241722,604.98,603.89,0.974]
[1745581378839,1.38241722,604.97,603.89,0.974]
[1745581379034,1.38241722,604.96,603.89,0.974]
[1745581379234,1.38241722,604.95,603.89,0.974]
[1745581379436,1.38241722,604.94,603.89,0.974]
[1745581379637,1.38241722,604.93,603.89,0.974]
[1745581379837,1.38241722,604.92,603.89,0.974]
[1745581380140,2.52333292,604.91,603.89,0.974]
[1745581380439,1.38241722,604.9,603.89,0.974]
[1745581380633,2.52333292,604.89,603.89,0.974]
[1745581380834,1.38241722,604.88,603.89,0.974]
[1745581381035,1.38241722,604.87,603.89,0.974]
[1745581381235,2.52333292,604.86,603.89,0.974]
[1745581381440,1.38241722,604.85,603.89,0.974]
[1745581381635,2.52333292,604.84,603.89,0.974]
[1745581381840,1.38241722,604.83,603.89,0.974]
[1745581382041,1.38241722,604.82,603.9,0.30391861]
[1745581382243,1.38241722,604.81,603.9,0.30391861]
[1745581382444,1.38241722,604.8,603.9,0.30391861]
[1745581382642,2.52333292,604.79,603.9,0.30391861]
[1745581382836,1.38273477,604.78,603.9,0.30391861]
[1745581383041,1.38273477,604.77,603.9,0.30391861]
[1745581383241,1.38273477,604.76,603.9,0.30391861]
[1745581383439,1.38273477,604.75,603.89,0.974]
[1745581383637,1.38273477,604.74,603.9,0.30389734]
[1745581383942,2.52365047,604.73,603.9,0.30389734]
[1745581384142,1.38273477,604.72,603.9,0.30389734]
[1745581384338,1.38273477,604.71,603.9,0.30389734]
[1745581384643,2.52365047,604.7,603.96,1.0505215]
[1745581384844,1.38273477,604.69,603.96,1.0505215]
[1745581385145,2.52365047,604.68,603.96,1.0505215]
[1745581385339,1.38273477,604.67,603.96,1.0505215]
[1745581385543,2.52365047,604.66,603.96,1.0505215]
[1745581385740,1.38273477,604.65,603.96,1.0505215]
[1745581386038,1.1409157,604.64,603.96,1.0505215]
[1745581386242,2.52365047,604.63,603.96,1.0505215]
[1745581386442,2.52365047,604.62,603.96,1.0505215]
[1745581386640,1.38273477,604.61,603.96,1.0505215]
[1745581387040,1.38273477,604.61,603.89,1.26192216]
[1745581387247,1.1409157,604.6,603.89,1.26192216]
[1745581387445,1.38273477,604.59,603.89,1.26192216]
[1745581388044,1.1409157,604.58,603.89,1.26192216]
[1745581388545,1.1409157,604.57,603.89,0.974]
[1745581388745,1.1409157,604.57,603.89,1.26193646]
[1745581389245,1.1409157,604.56,603.89,1.26193646]
[1745581389640,1.1409157,604.55,603.89,1.26193646]
[1745581389944,1.1409157,604.54,603.89,1.26193646]
[1745581390344,1.1409157,604.53,603.89,1.26193646]
[1745581391239,1.1409157,604.52,603.89,1.26193646]
[1745581391440,1.1409157,604.52,603.89,0.974]
[1745581392145,1.1409157,604.51,603.89,0.974]
[1745581392644,1.1409157,604.51,603.89,1.26194956]
[1745581393040,1.1409157,604.5,603.89,1.26194956]
[1745581393748,1.1409157,604.49,603.89,0.28794956]
[1745581394143,1.1409157,604.48,603.89,0.28794956]
[1745581394548,1.1409157,604.47,603.7,1.0505215]
[1745581395048,1.1409157,604.46,603.75,0.30387672]
[1745581395751,1.1409157,604.46,603.76,0.28796147]
[1745581395945,1.1409157,604.46,603.77,0.30387672]
[1745581396149,1.1409157,604.45,603.77,0.30387672]
[1745581396347,1.1409157,604.45,603.77,1.18387672]
[1745581396545,1.1409157,604.45,603.78,0.30387672]
[1745581396747,1.1409157,604.44,603.77,0.88]
[1745581396945,1.1409157,604.44,603.78,1.02]
[1745581397144,1.1409157,604.43,603.78,1.02]
[1745581397649,1.1409157,604.42,603.78,1.02]
[1745581398151,1.1409157,604.41,603.78,1.02]
[1745581398652,1.1409157,604.4,603.78,1.02]
[1745581399252,1.1409157,604.39,603.78,1.02]
[1745581399453,1.1409157,604.39,603.79,0.30384311]
[1745581399855,1.25820987,606.41,603.79,0.30384311]
[1745581400152,1.38329008,606.4,603.79,0.30384311]
[1745581400352,2.52677869,606.39,603.79,0.30384311]
[1745581400547,1.38329008,606.38,603.78,1.02]
[1745581400749,1.38329008,606.37,603.79,0.30381889]
[1745581400954,1.38289615,606.36,603.79,0.30381889]
[1745581401151,1.38289615,606.35,603.79,0.30381889]
[1745581401353,2.52638476,606.34,603.79,0.30381889]
[1745581401651,1.38289615,606.33,603.79,0.30381889]
[1745581401848,1.38289615,606.32,603.79,0.30381889]
[1745581402149,1.38289615,606.31,603.79,0.30381889]
[1745581402353,1.38289615,606.3,603.79,0.30381889]
[1745581402550,2.52638476,606.29,603.82,1.0505215]
[1745581402754,1.37782548,606.28,603.83,0.30381889]
[1745581403054,1.37782548,606.27,603.83,0.30381889]
[1745581403250,2.52131409,606.26,603.83,0.30381889]
[1745581403451,1.37782548,606.25,603.83,0.30381889]
[1745581403654,1.37782548,606.24,603.83,0.30381889]
[1745581403955,2.52131409,606.23,603.83,0.30381889]
[1745581404256,1.37782548,606.22,603.83,0.30381889]
[1745581404456,1.37782548,606.21,603.83,0.30381889]
[1745581404655,1.37782548,606.2,603.83,0.30381889]
[1745581404856,1.37782548,606.19,603.83,0.30381889]
[1745581405058,1.37782548,606.18,603.83,0.30381889]
[1745581405257,2.52131409,606.17,603.83,0.30381889]
[1745581405558,1.37782548,606.16,603.83,0.30381889]
[1745581405759,1.37782548,606.15,603.83,0.30381889]
[1745581405951,1.37782548,606.14,603.81,0.30381889]
[1745581406153,2.52131409,606.13,603.82,0.30381889]
[1745581406357,1.37782548,606.12,603.8,0.28771863]
[1745581406555,1.37782548,606.11,603.81,0.30381129]
[1745581406855,1.37782548,606.1,603.81,0.28770317]
[1745581407052,2.52131409,606.09,603.82,0.30377914]
[1745581407259,1.37782548,606.08,603.82,0.30377914]
[1745581407456,1.37782548,606.07,603.82,0.30377914]